[Event "Late-Titled-Tuesday-Blitz-September-19-2023"]
[Site "Chess.com"]
[Date "2023.09.19"]
[Round "4"]
[White "Dhaydon19"]
[Black "santosalberto1987"]
[Result "1/2-1/2"]
[WhiteElo "2656"]
[BlackElo "2513"]
[TimeControl "180+1"]
[EndTime "14:37:39 PDT"]
[Termination "Game drawn by repetition"]

1. d4 {[%clk 0:03:00.9]} 1... d5 {[%clk 0:02:57.3]} 2. Nc3 {[%clk 0:03:00.9]}
2... Nf6 {[%clk 0:02:56.8]} 3. Bf4 {[%clk 0:03:01.3]} 3... e6 {[%clk 0:02:54.2]}
4. Nb5 {[%clk 0:03:00.7]} 4... Bb4+ {[%clk 0:02:54.6]} 5. c3 {[%clk 0:03:00.2]}
5... Ba5 {[%clk 0:02:55.2]} 6. a4 {[%clk 0:03:00.6]} 6... a6 {[%clk 0:02:42.7]}
7. b4 {[%clk 0:02:59.3]} 7... axb5 {[%clk 0:02:41.6]} 8. axb5 {[%clk 0:02:57.6]}
8... b6 {[%clk 0:02:26.4]} 9. bxa5 {[%clk 0:02:56.9]} 9... bxa5 {[%clk
0:02:22.3]} 10. e3 {[%clk 0:02:53.8]} 10... O-O {[%clk 0:02:18.2]} 11. Bd3
{[%clk 0:02:53.2]} 11... c6 {[%clk 0:02:18.2]} 12. Nf3 {[%clk 0:02:43.6]} 12...
cxb5 {[%clk 0:02:16.4]} 13. Bxb5 {[%clk 0:02:43.7]} 13... Ba6 {[%clk 0:02:12.1]}
14. Bxa6 {[%clk 0:02:37.4]} 14... Rxa6 {[%clk 0:02:08.6]} 15. Qd3 {[%clk
0:02:35.3]} 15... Ra8 {[%clk 0:02:01.6]} 16. O-O {[%clk 0:02:32.7]} 16... Nc6
{[%clk 0:02:00.1]} 17. Ra4 {[%clk 0:02:29]} 17... h6 {[%clk 0:01:54.9]} 18. h3
{[%clk 0:02:28.1]} 18... Qb6 {[%clk 0:01:46.4]} 19. Rb1 {[%clk 0:02:26.4]} 19...
Qa6 {[%clk 0:01:45.8]} 20. Qxa6 {[%clk 0:02:25.1]} 20... Rxa6 {[%clk 0:01:46.7]}
21. Nd2 {[%clk 0:02:24.6]} 21... Rc8 {[%clk 0:01:43.9]} 22. Nb3 {[%clk
0:02:23.4]} 22... Ne4 {[%clk 0:01:41.7]} 23. Rc1 {[%clk 0:02:20.2]} 23... Ne7
{[%clk 0:01:38.9]} 24. Rxa5 {[%clk 0:02:16.9]} 24... Rxa5 {[%clk 0:01:38.9]} 25.
Nxa5 {[%clk 0:02:16.7]} 25... Rxc3 {[%clk 0:01:39.3]} 26. Rxc3 {[%clk
0:02:15.7]} 26... Nxc3 {[%clk 0:01:40.2]} 27. Kf1 {[%clk 0:02:15.3]} 27... Ng6
{[%clk 0:01:40]} 28. Bd6 {[%clk 0:02:12.7]} 28... Ne4 {[%clk 0:01:39.9]} 29. Bb4
{[%clk 0:02:10.8]} 29... Kh7 {[%clk 0:01:32.7]} 30. Nc6 {[%clk 0:02:08.7]} 30...
Nf6 {[%clk 0:01:30.5]} 31. f3 {[%clk 0:02:06.2]} 31... Nd7 {[%clk 0:01:29.5]}
32. Ke2 {[%clk 0:02:02.9]} 32... Nh4 {[%clk 0:01:28.1]} 33. Kf2 {[%clk
0:02:01.8]} 33... Ng6 {[%clk 0:01:26.8]} 34. Nd8 {[%clk 0:02:00.9]} 34... Kg8
{[%clk 0:01:25.9]} 35. Nb7 {[%clk 0:02:01.5]} 35... Nf6 {[%clk 0:01:21.7]} 36.
g4 {[%clk 0:01:59.9]} 36... Nd7 {[%clk 0:01:19.5]} 37. Nd8 {[%clk 0:01:58.2]}
37... Nb6 {[%clk 0:01:16.5]} 38. Kg3 {[%clk 0:01:53.1]} 38... Nc4 {[%clk
0:01:15.2]} 39. Kf2 {[%clk 0:01:52.3]} 39... Nb6 {[%clk 0:01:14.4]} 40. Nc6
{[%clk 0:01:50.7]} 40... Nc4 {[%clk 0:01:13.7]} 41. Bc5 {[%clk 0:01:44.5]} 41...
Nf8 {[%clk 0:01:04.4]} 42. Bxf8 {[%clk 0:01:39.5]} 42... Kxf8 {[%clk 0:01:04.3]}
43. Nb4 {[%clk 0:01:38.4]} 43... Ke7 {[%clk 0:01:03.3]} 44. Nd3 {[%clk
0:01:39.1]} 44... Kd6 {[%clk 0:01:01.7]} 45. Nf4 {[%clk 0:01:38]} 45... Ke7
{[%clk 0:01:00.4]} 46. Nh5 {[%clk 0:01:37.4]} 46... g6 {[%clk 0:00:59.9]} 47.
Ng3 {[%clk 0:01:38.1]} 47... Kf6 {[%clk 0:00:59]} 48. h4 {[%clk 0:01:37.9]}
48... Kg7 {[%clk 0:00:58.1]} 49. Ne2 {[%clk 0:01:36.4]} 49... Kf6 {[%clk
0:00:57.8]} 50. Nc3 {[%clk 0:01:35]} 50... Kg7 {[%clk 0:00:56.4]} 51. Ke2 {[%clk
0:01:35.6]} 51... Kf6 {[%clk 0:00:54.3]} 52. e4 {[%clk 0:01:35.2]} 52... dxe4
{[%clk 0:00:52.9]} 53. fxe4 {[%clk 0:01:34.7]} 53... Ke7 {[%clk 0:00:51.3]} 54.
Kd3 {[%clk 0:01:32.8]} 54... Nd6 {[%clk 0:00:50.4]} 55. e5 {[%clk 0:01:32.4]}
55... Ne8 {[%clk 0:00:47.4]} 56. Ne4 {[%clk 0:01:29.4]} 56... Nc7 {[%clk
0:00:46.3]} 57. Nf6 {[%clk 0:01:28]} 57... Kf8 {[%clk 0:00:38.9]} 58. Kc4 {[%clk
0:01:27.5]} 58... Ne8 {[%clk 0:00:38.5]} 59. Nxe8 {[%clk 0:01:22.9]} 59... Kxe8
{[%clk 0:00:38.6]} 60. Kc5 {[%clk 0:01:23.6]} 60... Kd7 {[%clk 0:00:38.5]} 61.
Kb6 {[%clk 0:01:24]} 61... Ke7 {[%clk 0:00:37.3]} 62. Kc7 {[%clk 0:01:23.1]}
62... Ke8 {[%clk 0:00:36.6]} 63. Kd6 {[%clk 0:01:19.1]} 63... Kf8 {[%clk
0:00:36.7]} 64. Kd7 {[%clk 0:01:16.4]} 64... Kg7 {[%clk 0:00:34.7]} 65. Ke7
{[%clk 0:01:15.7]} 65... Kg8 {[%clk 0:00:33.8]} 66. Kd6 {[%clk 0:01:08.6]} 66...
Kf8 {[%clk 0:00:33.2]} 67. Kd7 {[%clk 0:01:08.3]} 67... Kg7 {[%clk 0:00:32.2]}
68. Kc6 {[%clk 0:01:07.8]} 68... Kf8 {[%clk 0:00:32.2]} 69. g5 {[%clk
0:01:06.6]} 69... hxg5 {[%clk 0:00:31]} 70. hxg5 {[%clk 0:01:06.2]} 70... Ke7
{[%clk 0:00:31.2]} 71. Kc7 {[%clk 0:01:06.7]} 71... Ke8 {[%clk 0:00:31.3]} 72.
Kd6 {[%clk 0:01:07.2]} 72... Kd8 {[%clk 0:00:29.6]} 73. Kc6 {[%clk 0:01:07.5]}
73... Ke7 {[%clk 0:00:29.7]} 74. Kc7 {[%clk 0:01:07.7]} 74... Ke8 {[%clk
0:00:29.9]} 75. Kd6 {[%clk 0:01:07.9]} 75... Kd8 {[%clk 0:00:29.9]} 76. Kc6
{[%clk 0:01:08.6]} 76... Ke7 {[%clk 0:00:29.9]} 1/2-1/2

[Event "Late-Titled-Tuesday-Blitz-September-19-2023"]
[Site "Chess.com"]
[Date "2023.09.19"]
[Round "4"]
[White "Mesa_1"]
[Black "ilya2700"]
[Result "1-0"]
[WhiteElo "2596"]
[BlackElo "2301"]
[TimeControl "180+1"]
[EndTime "14:37:39 PDT"]
[Termination "Mesa_1 won by resignation"]

1. e4 {[%clk 0:02:55.4]} 1... c5 {[%clk 0:02:05.4]} 2. Nf3 {[%clk 0:02:54.8]}
2... e6 {[%clk 0:02:05.4]} 3. d4 {[%clk 0:02:51.6]} 3... cxd4 {[%clk 0:02:06.3]}
4. Nxd4 {[%clk 0:02:52.1]} 4... Nc6 {[%clk 0:02:07.1]} 5. Nc3 {[%clk 0:02:51.2]}
5... Qc7 {[%clk 0:02:07.8]} 6. h4 {[%clk 0:02:37.5]} 6... a6 {[%clk 0:02:07.3]}
7. h5 {[%clk 0:02:37]} 7... h6 {[%clk 0:02:06.9]} 8. a3 {[%clk 0:02:31]} 8... b5
{[%clk 0:02:06.7]} 9. Nxc6 {[%clk 0:02:26.7]} 9... Qxc6 {[%clk 0:02:06.8]} 10.
Bd3 {[%clk 0:02:23.2]} 10... Bb7 {[%clk 0:02:07.1]} 11. Qe2 {[%clk 0:02:17.3]}
11... Rc8 {[%clk 0:02:05]} 12. Bd2 {[%clk 0:02:15.3]} 12... Bc5 {[%clk
0:02:01.4]} 13. Rh3 {[%clk 0:02:07.9]} 13... Nf6 {[%clk 0:01:58.2]} 14. Rg3
{[%clk 0:02:03.6]} 14... Bd4 {[%clk 0:01:53]} 15. e5 {[%clk 0:01:52.3]} 15...
Nd5 {[%clk 0:01:50]} 16. Be4 {[%clk 0:01:42.6]} 16... Nxc3 {[%clk 0:01:39.3]}
17. Rxc3 {[%clk 0:01:31]} 17... Bxc3 {[%clk 0:01:32]} 18. Bxc6 {[%clk
0:01:28.5]} 18... Bxd2+ {[%clk 0:01:32.4]} 19. Qxd2 {[%clk 0:01:25.2]} 19...
Bxc6 {[%clk 0:01:33.3]} 20. f3 {[%clk 0:01:16]} 20... O-O {[%clk 0:01:32.6]} 21.
O-O-O {[%clk 0:01:13.8]} 21... Bd5 {[%clk 0:01:32.7]} 22. Kb1 {[%clk 0:01:12.6]}
22... Rc5 {[%clk 0:01:31.4]} 23. c3 {[%clk 0:01:06.2]} 23... a5 {[%clk
0:01:30.3]} 24. Qe3 {[%clk 0:00:52.7]} 24... Rfc8 {[%clk 0:01:29.9]} 25. Rd4
{[%clk 0:00:53.3]} 25... Bc6 {[%clk 0:01:16.5]} 26. Rg4 {[%clk 0:00:49.1]} 26...
Kh7 {[%clk 0:01:13.2]} 27. Rd4 {[%clk 0:00:35.9]} 27... Rd5 {[%clk 0:01:08.5]}
28. Rxd5 {[%clk 0:00:34.4]} 28... exd5 {[%clk 0:01:00.9]} 29. f4 {[%clk
0:00:26]} 29... Re8 {[%clk 0:00:59]} 30. Qd3+ {[%clk 0:00:20.4]} 30... Kg8
{[%clk 0:00:57.4]} 31. g4 {[%clk 0:00:20.4]} 31... b4 {[%clk 0:00:46.8]} 32.
axb4 {[%clk 0:00:20.1]} 32... axb4 {[%clk 0:00:47.7]} 33. cxb4 {[%clk 0:00:21]}
33... Rb8 {[%clk 0:00:47.8]} 34. Qd4 {[%clk 0:00:21.4]} 34... Ba4 {[%clk
0:00:28.6]} 35. f5 {[%clk 0:00:21.2]} 35... Bb3 {[%clk 0:00:27.4]} 36. Qc3
{[%clk 0:00:20.5]} 36... Bc4 {[%clk 0:00:26]} 37. b3 {[%clk 0:00:21]} 37... d4
{[%clk 0:00:18.9]} 38. Qxc4 {[%clk 0:00:20.7]} 38... d3 {[%clk 0:00:17.5]} 39.
Qxd3 {[%clk 0:00:20.6]} 39... Rxb4 {[%clk 0:00:18.1]} 40. Qxd7 {[%clk
0:00:20.4]} 40... Rxb3+ {[%clk 0:00:18.3]} 41. Kc2 {[%clk 0:00:20.3]} 41... Rg3
{[%clk 0:00:19.2]} 42. Qe8+ {[%clk 0:00:19.9]} 42... Kh7 {[%clk 0:00:19.4]} 43.
Qxf7 {[%clk 0:00:20.5]} 43... Rg2+ {[%clk 0:00:18.2]} 44. Kd3 {[%clk 0:00:20.5]}
44... Rxg4 {[%clk 0:00:19.1]} 45. e6 {[%clk 0:00:20.4]} 45... Rg5 {[%clk
0:00:19.7]} 46. e7 {[%clk 0:00:20.4]} 46... Rg4 {[%clk 0:00:19.5]} 47. Qg6+
{[%clk 0:00:20.1]} 47... Rxg6 {[%clk 0:00:19.3]} 48. hxg6+ {[%clk 0:00:21]} 1-0

[Event "Late-Titled-Tuesday-Blitz-September-19-2023"]
[Site "Chess.com"]
[Date "2023.09.19"]
[Round "4"]
[White "WPWPWP-2015"]
[Black "TanitoluwaAps116"]
[Result "1-0"]
[WhiteElo "2528"]
[BlackElo "2668"]
[TimeControl "180+1"]
[EndTime "14:37:40 PDT"]
[Termination "WPWPWP-2015 won on time"]

1. e4 {[%clk 0:03:00.9]} 1... c5 {[%clk 0:02:55.6]} 2. Nf3 {[%clk 0:03:00.4]}
2... Nc6 {[%clk 0:02:52.9]} 3. Bb5 {[%clk 0:02:59.6]} 3... g6 {[%clk 0:02:52.1]}
4. O-O {[%clk 0:02:59.2]} 4... Bg7 {[%clk 0:02:51.6]} 5. c3 {[%clk 0:02:59.1]}
5... e5 {[%clk 0:02:43.8]} 6. Re1 {[%clk 0:02:55.3]} 6... Nge7 {[%clk
0:02:42.5]} 7. d3 {[%clk 0:02:52.8]} 7... O-O {[%clk 0:02:39.1]} 8. h3 {[%clk
0:02:52.7]} 8... a6 {[%clk 0:02:37.5]} 9. Ba4 {[%clk 0:02:51.9]} 9... b5 {[%clk
0:02:31]} 10. Bb3 {[%clk 0:02:51.7]} 10... d5 {[%clk 0:02:24.1]} 11. Be3 {[%clk
0:02:43.9]} 11... c4 {[%clk 0:02:17.1]} 12. Bc2 {[%clk 0:02:32]} 12... cxd3
{[%clk 0:01:54.5]} 13. Bxd3 {[%clk 0:02:31.5]} 13... f5 {[%clk 0:01:53.4]} 14.
exd5 {[%clk 0:02:25.3]} 14... Nxd5 {[%clk 0:01:46.4]} 15. Bc5 {[%clk 0:01:54.7]}
15... Re8 {[%clk 0:01:37.1]} 16. Bc2 {[%clk 0:01:53.4]} 16... Bb7 {[%clk
0:01:26.4]} 17. a4 {[%clk 0:01:30.4]} 17... e4 {[%clk 0:00:52.9]} 18. axb5
{[%clk 0:01:23.3]} 18... axb5 {[%clk 0:00:48.1]} 19. Rxa8 {[%clk 0:01:22.3]}
19... Bxa8 {[%clk 0:00:36.9]} 20. Nd4 {[%clk 0:01:06.9]} 20... b4 {[%clk
0:00:36.9]} 21. Bb3 {[%clk 0:01:01.6]} 21... Na5 {[%clk 0:00:32]} 22. Ba4 {[%clk
0:01:01.4]} 22... Re5 {[%clk 0:00:09.9]} 23. cxb4 {[%clk 0:00:58.7]} 23... Nc4
{[%clk 0:00:07]} 24. Qc2 {[%clk 0:00:39.6]} 24... Ncb6 {[%clk 0:00:02.7]} 25.
Nc6 {[%clk 0:00:37.2]} 25... Bxc6 {[%clk 0:00:02.3]} 26. Bxc6 {[%clk 0:00:37.1]}
26... Kh8 {[%clk 0:00:02.7]} 27. Rd1 {[%clk 0:00:33.5]} 27... Qc7 {[%clk
0:00:01.9]} 28. b5 {[%clk 0:00:23.4]} 28... h5 {[%clk 0:00:01.5]} 29. Nc3 {[%clk
0:00:20.2]} 29... Nxc3 {[%clk 0:00:01.5]} 30. Bd6 {[%clk 0:00:16]} 30... Qc8
{[%clk 0:00:01.1]} 31. bxc3 {[%clk 0:00:15.5]} 31... Re7 {[%clk 0:00:01.3]} 32.
Bxe7 {[%clk 0:00:15]} 32... e3 {[%clk 0:00:01.9]} 33. fxe3 {[%clk 0:00:14]}
33... Qe6 {[%clk 0:00:02.2]} 34. Bc5 {[%clk 0:00:13.5]} 34... Nc4 {[%clk
0:00:02.1]} 35. Qe2 {[%clk 0:00:11.5]} 35... Ne5 {[%clk 0:00:01.4]} 36. Bd5
{[%clk 0:00:11.1]} 36... Qf6 {[%clk 0:00:01.4]} 37. Bd4 {[%clk 0:00:10.9]} 37...
Qg5 {[%clk 0:00:01.7]} 38. Bf3 {[%clk 0:00:08]} 38... h4 {[%clk 0:00:01]} 39. b6
{[%clk 0:00:08.1]} 39... Kh7 {[%clk 0:00:01.5]} 40. b7 {[%clk 0:00:08.5]} 40...
Qd8 {[%clk 0:00:01.9]} 41. Bxe5 {[%clk 0:00:08.1]} 1-0

[Event "Late-Titled-Tuesday-Blitz-September-19-2023"]
[Site "Chess.com"]
[Date "2023.09.19"]
[Round "4"]
[White "BrandonJacobson"]
[Black "simplerXiao"]
[Result "0-1"]
[WhiteElo "2893"]
[BlackElo "2574"]
[TimeControl "180+1"]
[EndTime "14:37:41 PDT"]
[Termination "simplerXiao won by resignation"]

1. Nf3 {[%clk 0:03:00.9]} 1... d5 {[%clk 0:02:59.4]} 2. c4 {[%clk 0:03:01.6]}
2... d4 {[%clk 0:02:59.1]} 3. b4 {[%clk 0:03:00.6]} 3... f6 {[%clk 0:02:58.6]}
4. Na3 {[%clk 0:02:58.7]} 4... e5 {[%clk 0:02:58.7]} 5. Nc2 {[%clk 0:02:59.4]}
5... a5 {[%clk 0:02:55.8]} 6. b5 {[%clk 0:02:57.7]} 6... Bc5 {[%clk 0:02:53.4]}
7. d3 {[%clk 0:02:57.4]} 7... Ne7 {[%clk 0:02:53.3]} 8. g3 {[%clk 0:02:57.5]}
8... O-O {[%clk 0:02:52.2]} 9. Bg2 {[%clk 0:02:58]} 9... Nd7 {[%clk 0:02:51.5]}
10. O-O {[%clk 0:02:57.8]} 10... f5 {[%clk 0:02:51.7]} 11. Nd2 {[%clk
0:02:50.7]} 11... Ng6 {[%clk 0:02:48]} 12. Nb3 {[%clk 0:02:49.6]} 12... Bd6
{[%clk 0:02:46.4]} 13. a4 {[%clk 0:02:48.2]} 13... Qe7 {[%clk 0:02:43.8]} 14. e3
{[%clk 0:02:43.7]} 14... dxe3 {[%clk 0:02:39.4]} 15. Nxe3 {[%clk 0:02:39.1]}
15... f4 {[%clk 0:02:36.4]} 16. Nd5 {[%clk 0:02:39.3]} 16... Qd8 {[%clk
0:02:30.4]} 17. Nd2 {[%clk 0:02:36.8]} 17... Nc5 {[%clk 0:02:28.9]} 18. Ne4
{[%clk 0:02:35.5]} 18... Nxe4 {[%clk 0:02:26.8]} 19. Bxe4 {[%clk 0:02:36.4]}
19... Bh3 {[%clk 0:02:21.8]} 20. Re1 {[%clk 0:02:29]} 20... c6 {[%clk
0:02:17.9]} 21. Qh5 {[%clk 0:02:19.9]} 21... Be6 {[%clk 0:02:00.1]} 22. Nc3
{[%clk 0:02:19.7]} 22... Bc5 {[%clk 0:01:56.8]} 23. Bxg6 {[%clk 0:02:14]} 23...
hxg6 {[%clk 0:01:55.9]} 24. Qxe5 {[%clk 0:02:14]} 24... Bxf2+ {[%clk 0:01:42.3]}
25. Kxf2 {[%clk 0:02:13.7]} 25... fxg3+ {[%clk 0:01:42.4]} 26. Kxg3 {[%clk
0:02:09.9]} 26... Re8 {[%clk 0:01:39]} 27. Re3 {[%clk 0:01:40.4]} 27... Bf7
{[%clk 0:01:35.7]} 28. Qf4 {[%clk 0:01:39.3]} 28... g5 {[%clk 0:01:31.9]} 29.
Rxe8+ {[%clk 0:01:34]} 29... Bxe8 {[%clk 0:01:32.1]} 30. Qf3 {[%clk 0:01:24.7]}
30... Qd6+ {[%clk 0:01:28.6]} 31. Kg2 {[%clk 0:01:24.9]} 31... Qd4 {[%clk
0:01:27.3]} 32. Bd2 {[%clk 0:01:19.3]} 32... Bg6 {[%clk 0:01:26.9]} 33. Rd1
{[%clk 0:01:12.1]} 33... Rf8 {[%clk 0:01:24.5]} 34. Qe3 {[%clk 0:00:59.9]} 34...
Qg4+ {[%clk 0:01:21.6]} 35. Qg3 {[%clk 0:01:00.1]} 35... Qd4 {[%clk 0:01:17.5]}
36. Ne2 {[%clk 0:00:55.9]} 36... Qb2 {[%clk 0:01:12.1]} 37. Kg1 {[%clk
0:00:45.1]} 37... Bh5 {[%clk 0:01:09.6]} 38. Bc3 {[%clk 0:00:15]} 38... Qc2
{[%clk 0:00:58.1]} 39. Re1 {[%clk 0:00:15.9]} 39... Bxe2 {[%clk 0:00:57.4]} 40.
Bxg7 {[%clk 0:00:13.5]} 40... Rf5 {[%clk 0:00:34.9]} 41. Ba1 {[%clk 0:00:13.5]}
41... cxb5 {[%clk 0:00:29.4]} 42. axb5 {[%clk 0:00:12]} 42... Qd2 {[%clk
0:00:26.5]} 43. Qb8+ {[%clk 0:00:05.9]} 43... Kf7 {[%clk 0:00:24.9]} 44. Qxb7+
{[%clk 0:00:05.7]} 44... Kg6 {[%clk 0:00:25.2]} 45. Qg7+ {[%clk 0:00:05.6]}
45... Kh5 {[%clk 0:00:25]} 46. Qh7+ {[%clk 0:00:06.1]} 46... Kg4 {[%clk
0:00:25]} 47. h3+ {[%clk 0:00:06.5]} 47... Kf4 {[%clk 0:00:24]} 48. Qc7+ {[%clk
0:00:06.8]} 48... Kf3 {[%clk 0:00:22.1]} 49. Qc6+ {[%clk 0:00:06.9]} 49... Kg3
{[%clk 0:00:21.4]} 50. Qg2+ {[%clk 0:00:07]} 50... Kh4 {[%clk 0:00:20.5]} 51.
Qg4+ {[%clk 0:00:07.9]} 51... Bxg4 {[%clk 0:00:19.7]} 0-1

[Event "Late-Titled-Tuesday-Blitz-September-19-2023"]
[Site "Chess.com"]
[Date "2023.09.19"]
[Round "4"]
[White "Thjop"]
[Black "traack"]
[Result "1-0"]
[WhiteElo "2611"]
[BlackElo "2371"]
[TimeControl "180+1"]
[EndTime "14:37:41 PDT"]
[Termination "Thjop won on time"]

1. e4 {[%clk 0:03:00.9]} 1... c5 {[%clk 0:03:00.1]} 2. Nf3 {[%clk 0:03:00.9]}
2... e6 {[%clk 0:03:00.3]} 3. g3 {[%clk 0:03:00.7]} 3... Nc6 {[%clk 0:02:56.7]}
4. Bg2 {[%clk 0:03:00.4]} 4... Nf6 {[%clk 0:02:55.9]} 5. d3 {[%clk 0:03:00]}
5... d5 {[%clk 0:02:49.6]} 6. Nbd2 {[%clk 0:02:59.9]} 6... Be7 {[%clk
0:02:49.2]} 7. O-O {[%clk 0:02:59.5]} 7... b6 {[%clk 0:02:47.1]} 8. Re1 {[%clk
0:02:59.2]} 8... Bb7 {[%clk 0:02:47.2]} 9. e5 {[%clk 0:02:56.4]} 9... Nd7 {[%clk
0:02:47.3]} 10. Nf1 {[%clk 0:02:57.3]} 10... Qc7 {[%clk 0:02:46.6]} 11. Bf4
{[%clk 0:02:56.6]} 11... h6 {[%clk 0:02:45.2]} 12. h4 {[%clk 0:02:56.5]} 12...
g5 {[%clk 0:02:44.3]} 13. hxg5 {[%clk 0:02:56.2]} 13... hxg5 {[%clk 0:02:44.3]}
14. Nxg5 {[%clk 0:02:55.4]} 14... Ndxe5 {[%clk 0:02:30.3]} 15. Ne3 {[%clk
0:02:40.6]} 15... Qd7 {[%clk 0:01:42.9]} 16. c3 {[%clk 0:02:15.1]} 16... Ng6
{[%clk 0:01:36.7]} 17. Nh3 {[%clk 0:01:58.4]} 17... O-O-O {[%clk 0:01:07.4]} 18.
d4 {[%clk 0:01:53.7]} 18... e5 {[%clk 0:00:47.4]} 19. dxe5 {[%clk 0:01:46.9]}
19... Rxh3 {[%clk 0:00:46.6]} 20. Bxh3 {[%clk 0:01:46.7]} 20... Qxh3 {[%clk
0:00:46.4]} 21. Qg4+ {[%clk 0:01:46.7]} 21... Qxg4 {[%clk 0:00:45.8]} 22. Nxg4
{[%clk 0:01:47.2]} 22... Nxf4 {[%clk 0:00:43.6]} 23. gxf4 {[%clk 0:01:48.1]}
23... Rg8 {[%clk 0:00:42.7]} 24. f3 {[%clk 0:01:48.6]} 24... d4 {[%clk
0:00:32.4]} 25. Kf2 {[%clk 0:01:45.4]} 25... dxc3 {[%clk 0:00:27.5]} 26. bxc3
{[%clk 0:01:45.1]} 26... Na5 {[%clk 0:00:28.4]} 27. Rh1 {[%clk 0:01:42.6]} 27...
Nc4 {[%clk 0:00:28.5]} 28. Rh7 {[%clk 0:01:41.7]} 28... Bd5 {[%clk 0:00:29]} 29.
f5 {[%clk 0:01:38.6]} 29... Nd2 {[%clk 0:00:25.1]} 30. Rd1 {[%clk 0:01:36.3]}
30... Bxf3 {[%clk 0:00:25.5]} 31. Rxd2 {[%clk 0:01:34.1]} 31... Bxg4 {[%clk
0:00:26]} 32. f6 {[%clk 0:01:33.2]} 32... Bd8 {[%clk 0:00:19.6]} 33. Rxf7 {[%clk
0:01:32.6]} 33... Be6 {[%clk 0:00:18.4]} 34. Rxa7 {[%clk 0:01:29.9]} 34... Kb8
{[%clk 0:00:17.3]} 35. Rg7 {[%clk 0:01:28.3]} 35... Rf8 {[%clk 0:00:15.9]} 36.
Ke3 {[%clk 0:01:25.4]} 36... b5 {[%clk 0:00:15.6]} 37. Rd6 {[%clk 0:01:23.9]}
37... Bxa2 {[%clk 0:00:14.1]} 38. Rgd7 {[%clk 0:01:15.3]} 38... Bc7 {[%clk
0:00:13.6]} 39. Rc6 {[%clk 0:01:15.3]} 39... Bxe5 {[%clk 0:00:13.3]} 40. f7
{[%clk 0:01:15.2]} 40... Bxc3 {[%clk 0:00:13.4]} 41. Rxc5 {[%clk 0:01:08.2]}
41... b4 {[%clk 0:00:11.9]} 42. Rb5+ {[%clk 0:01:05.9]} 42... Kc8 {[%clk
0:00:12.3]} 43. Rbb7 {[%clk 0:01:05.9]} 43... Be5 {[%clk 0:00:09.6]} 44. Ke4
{[%clk 0:01:04.5]} 44... Bb8 {[%clk 0:00:05.5]} 45. Re7 {[%clk 0:01:00.3]} 45...
b3 {[%clk 0:00:05.9]} 46. Rb5 {[%clk 0:00:54.4]} 46... Bd6 {[%clk 0:00:03.3]}
47. Re8+ {[%clk 0:00:50.7]} 47... Kd7 {[%clk 0:00:03.9]} 48. Rb7+ {[%clk
0:00:49.9]} 48... Kc6 {[%clk 0:00:03.4]} 49. Rbb8 {[%clk 0:00:47.7]} 49... Bxb8
{[%clk 0:00:03.1]} 50. Rxf8 {[%clk 0:00:47.5]} 50... Bd6 {[%clk 0:00:03.7]} 51.
Rd8 {[%clk 0:00:43.6]} 51... b2 {[%clk 0:00:04]} 52. Rxd6+ {[%clk 0:00:43.5]}
52... Kc7 {[%clk 0:00:03.1]} 53. f8=Q {[%clk 0:00:40.4]} 53... b1=Q+ {[%clk
0:00:00.4]} 54. Ke5 {[%clk 0:00:41.3]} 1-0